bitfinex-derivatives/quotes_ETHF0:USTF0_20241105
["timestamp","ask_amount","ask_price","bid_price","bid_amount"]
[1730765535768,0.41509,2410.4,2410.3,3.42064463]
[1730765539059,41.21505,2410.7,2410.4,0.41508]
[1730765539263,41.21505,2410.7,2410.5,0.21284463]
[1730765539264,0.41506,2410.6,2410.5,0.21284463]
[1730765539459,0.41506,2410.6,2410.5,0.21282332]
[1730765541364,0.41509,2410.4,2410.3,3.2078]
[1730765541663,0.41509,2410.4,2410.3,3.42063077]
[1730765546472,4.56389,2410.4,2410.3,0.21283077]
[1730765546777,0.41518,2409.9,2409.8,0.4315]
[1730765546966,0.41518,2409.9,2409.8,0.64443262]
[1730765547969,0.41518,2409.9,2409.8,0.4315]
[1730765548474,0.41518,2410.0,2409.8,0.64433655]
[1730765548661,0.41512,2410.3,2410.0,0.41515]
[1730765548867,0.41513,2410.2,2410.1,0.21283655]
[1730765549369,2.51667,2410.6,2410.1,0.21283655]
[1730765549574,0.41509,2410.4,2410.3,3.2078]
[1730765549872,1.479,2410.6,2410.2,3.2078]
[1730765549873,0.41511,2410.3,2410.2,3.2078]
[1730765550067,0.4151,2410.4,2410.2,3.42045867]
[1730765550273,0.41508,2410.5,2410.3,0.21265867]
[1730765550478,0.41508,2410.5,2410.4,0.21265867]
[1730765550663,0.41507,2410.5,2410.4,0.21265867]
[1730765550871,0.41507,2410.6,2410.4,0.21265867]
[1730765551070,0.41507,2410.6,2410.5,3.42045867]
[1730765551377,41.21505,2410.7,2410.5,3.42045867]
[1730765551570,41.21505,2410.7,2410.6,0.21265867]
[1730765552472,40.8,2410.7,2410.6,0.62771867]
[1730765552675,1.684,2410.8,2410.7,0.41504]
[1730765552863,1.684,2410.8,2410.7,3.74747221]
[1730765553061,0.41498,2411.1,2410.7,3.74747221]
[1730765553270,42.484,2411.3,2410.9,3.2078]
[1730765553472,42.484,2411.3,2411.0,0.21265867]
[1730765553665,0.41495,2411.2,2411.1,0.21265867]
[1730765553970,0.41499,2411.0,2410.9,3.2078]
[1730765554172,0.41499,2411.0,2410.9,3.42040412]
[1730765556181,0.41499,2411.0,2410.9,3.42036387]
[1730765556372,4.56299,2411.0,2410.9,3.42036387]
[1730765556871,4.56299,2411.0,2410.9,3.2078]
[1730765559777,4.148,2411.0,2410.5,3.6676]
[1730765560077,0.41506,2410.6,2410.5,3.6676]
[1730765560276,0.41506,2410.6,2410.5,0.67230014]
[1730765560474,0.41511,2410.3,2410.2,3.2078]
[1730765560668,0.41511,2410.3,2410.2,3.420371]
[1730765560970,41.21511,2410.3,2410.2,4.00209597]
[1730765561173,41.21511,2410.3,2410.2,3.420371]
[1730765561373,41.21511,2410.3,2410.2,4.00209748]
[1730765563369,41.21511,2410.3,2410.2,3.2078]
[1730765563570,41.21511,2410.3,2410.2,4.00212424]
[1730765564886,40.8,2410.3,2410.2,4.00212424]
[1730765565182,40.8,2410.3,2410.2,8.15092424]
[1730765565379,40.8,2410.3,2410.2,9.22699633]
[1730765565577,40.8,2410.3,2410.2,8.15092424]
[1730765566375,40.8,2410.3,2410.2,9.64212633]
[1730765566582,40.8,2410.3,2410.2,9.22641561]
[1730765566972,40.8,2410.3,2410.2,9.64154561]
[1730765567176,40.8,2410.3,2410.2,9.64136889]
[1730765567383,40.8,2410.3,2410.2,9.22623889]
[1730765567689,40.8,2410.3,2410.2,9.6413691]
[1730765569581,40.8,2410.3,2410.2,9.2262391]
[1730765569891,40.8,2410.3,2410.2,9.6413691]
[1730765570985,40.8,2410.3,2410.2,9.05984551]
[1730765571181,40.8,2410.3,2410.2,9.6417338]
[1730765571683,41.21511,2410.3,2410.2,9.2266038]
[1730765573281,41.21511,2410.3,2410.2,5.0778038]
[1730765574486,41.21511,2410.3,2410.2,4.49591551]
[1730765574689,41.21511,2410.3,2410.2,5.07793067]
[1730765575385,41.21511,2410.3,2410.2,4.0024393]
[1730765575585,41.21511,2410.3,2410.2,4.00249877]
[1730765577288,40.8,2410.3,2410.2,4.00249877]
[1730765577497,40.8,2410.3,2410.2,5.07799014]
[1730765577984,40.8,2410.3,2410.2,5.49312014]
[1730765578180,41.21511,2410.3,2410.2,4.28329137]
[1730765578382,41.21511,2410.3,2410.2,5.07807443]
[1730765578585,41.21511,2410.3,2410.2,4.00259074]
[1730765578786,41.21511,2410.3,2410.2,5.07808211]
[1730765579390,40.8,2410.3,2410.2,5.07808211]
[1730765579591,40.8,2410.3,2410.2,5.49321211]
[1730765579791,40.8,2410.3,2410.2,4.00259074]
[1730765579985,40.8,2410.3,2410.2,8.56652074]
[1730765580187,40.8,2410.3,2410.2,5.49321211]
[1730765580597,40.8,2410.3,2410.2,5.07808211]
[1730765580803,41.21511,2410.3,2410.2,5.07808211]
[1730765581103,40.8,2410.3,2410.2,5.0780884]
[1730765581489,1.684,2410.4,2410.3,0.41511]
[1730765581686,2.09909,2410.4,2410.3,4.97138742]
[1730765581894,2.09909,2410.4,2410.3,0.79479703]
[1730765582198,42.89909,2410.4,2410.3,0.79479703]
[1730765582386,42.89909,2410.4,2410.3,0.2127184]
[1730765584191,42.89909,2410.4,2410.2,3.2078]
[1730765584192,0.41511,2410.3,2410.2,3.2078]
[1730765584389,0.41511,2410.3,2410.2,4.00282395]
[1730765584988,4.56391,2410.3,2410.2,0.21275377]
[1730765585187,0.41516,2410.0,2409.9,3.2078]
[1730765585389,0.41516,2410.0,2409.9,3.42064486]
[1730765586691,4.56476,2410.0,2409.9,0.21284486]
[1730765586896,0.41523,2409.6,2409.5,3.2078]
[1730765587086,5.18752,2410.0,2409.5,3.796202]
[1730765587087,0.41522,2409.7,2409.5,3.796202]
[1730765587284,0.41522,2409.7,2409.5,4.87224894]
[1730765588088,0.4152,2409.8,2409.5,5.28748894]
[1730765588292,0.41521,2409.8,2409.6,0.58831163]
[1730765588906,0.41521,2409.7,2409.6,0.58831163]
[1730765589397,3.2078,2410.1,2409.6,0.58831163]
[1730765589700,0.41516,2410.0,2409.6,0.58831163]
[1730765589901,0.41521,2409.8,2409.6,0.58831163]
[1730765590200,0.41521,2409.7,2409.5,4.28384694]
[1730765591199,0.41517,2410.0,2409.6,1.00344131]
[1730765591501,1.684,2410.3,2410.1,0.41514]
[1730765591689,0.41518,2410.0,2409.8,1.07604694]
[1730765591893,0.41518,2410.0,2409.7,0.41521]
[1730765591894,0.41516,2410.1,2409.9,3.2078]
[1730765592093,42.484,2410.4,2409.9,3.2078]
[1730765592302,0.41515,2410.1,2409.9,3.2078]
[1730765592697,0.41516,2410.1,2409.9,3.2078]
[1730765592897,0.41514,2410.2,2409.9,3.62297]
[1730765593095,0.41514,2410.2,2410.0,0.4561]
[1730765593497,42.484,2410.4,2410.0,0.4561]
[1730765593699,0.41514,2410.1,2410.0,0.4561]
[1730765594598,43.52177,2410.4,2409.7,1.49125694]
[1730765594599,0.41517,2410.0,2409.7,1.49125694]
[1730765594797,0.41517,2410.0,2409.7,1.92955694]
[1730765594992,0.41517,2410.0,2409.9,3.2078]
[1730765595302,0.4152,2409.8,2409.7,0.4383]
[1730765595598,1.0378,2410.3,2409.7,0.4383]
[1730765595798,42.484,2410.4,2409.7,0.4383]
[1730765596005,0.41515,2410.1,2409.9,3.2078]
[1730765596301,42.484,2410.4,2409.9,3.2078]
[1730765596503,0.41513,2410.2,2409.9,3.62298]
[1730765596702,0.41515,2410.1,2409.9,3.2078]
[1730765597303,0.41515,2410.1,2410.0,0.58826813]
[1730765597806,0.41512,2410.3,2410.0,5.15301813]
[1730765597991,0.41512,2410.3,2410.0,1.00341813]
[1730765598197,42.8991,2410.4,2410.1,0.41514]
[1730765598596,42.8991,2410.4,2410.0,0.58826813]
[1730765599106,42.8991,2410.4,2410.1,0.41514]
[1730765600202,0.41517,2410.0,2409.8,1.07604694]
[1730765600505,0.41517,2410.0,2409.9,3.2078]
[1730765601305,0.41517,2410.0,2409.9,3.79614281]
[1730765602105,0.41517,2410.0,2409.9,0.58834281]
[1730765605502,0.41519,2409.9,2409.7,3.6461]
[1730765605705,0.41519,2409.9,2409.8,0.59338195]
[1730765606117,0.41519,2409.9,2409.8,0.80576935]
[1730765609704,0.41519,2409.9,2409.8,0.2123874]
[1730765609911,0.41519,2409.9,2409.8,0.80556808]
[1730765610107,0.41519,2409.9,2409.8,0.8054909]
[1730765611214,0.41525,2409.5,2409.3,5.17654694]
[1730765611514,0.41525,2409.5,2409.4,0.80542733]
[1730765612009,1.38249,2409.9,2409.4,0.80542733]
[1730765612213,0.41525,2409.5,2409.3,4.72434694]
[1730765612403,0.41525,2409.5,2409.4,0.80533592]
[1730765612602,4.56565,2409.5,2409.4,0.21226952]
[1730765612807,4.1504,2409.5,2409.0,3.2078]
[1730765613005,0.41531,2409.2,2409.1,0.8098067]
[1730765613207,0.41536,2408.9,2408.6,3.2078]
[1730765613515,0.41537,2408.8,2408.7,0.21234395]
[1730765613707,0.41537,2408.8,2408.6,3.2078]
[1730765613708,40.8,2408.8,2408.6,3.2078]
[1730765613907,41.21537,2408.8,2408.7,0.21234338]
[1730765614310,0.4154,2408.6,2408.3,2.94844694]
[1730765614508,40.8,2408.8,2408.4,0.80896614]
[1730765614815,0.41542,2408.5,2408.3,0.938]
[1730765615009,0.41542,2408.5,2408.4,0.80898744]
[1730765615311,0.41542,2408.5,2408.3,0.938]
[1730765615811,0.41542,2408.6,2408.3,1.35345]
[1730765616014,0.41542,2408.6,2408.4,0.21198287]
[1730765616225,0.41542,2408.5,2408.3,1.35345]
[1730765616922,40.8,2408.8,2408.3,0.938]
[1730765617221,0.41543,2408.5,2408.3,0.938]
[1730765617920,0.41543,2408.5,2408.3,1.35344]
[1730765618514,0.4154,2408.6,2408.4,0.41543]
[1730765618714,40.8,2408.8,2408.5,3.2078]
[1730765618923,41.21538,2408.8,2408.6,0.41539]
[1730765619616,41.21537,2408.8,2408.5,3.2078]
[1730765620119,40.8,2408.8,2408.6,0.4154]
[1730765620320,41.21537,2408.8,2408.6,0.4154]
[1730765620521,0.41537,2408.8,2408.6,4.152]
[1730765620717,1.25554145,2409.3,2408.5,3.2078]
[1730765620718,0.41539,2408.7,2408.5,3.62321]
[1730765620911,0.41538,2408.8,2408.5,3.62321]
[1730765621114,0.41538,2408.8,2408.5,3.2078]
[1730765621312,40.8,2409.0,2408.5,3.2078]
[1730765621513,0.41535,2408.9,2408.8,3.2078]
[1730765621915,3.2078,2409.4,2408.8,7.77435]
[1730765622121,0.41535,2408.9,2408.8,4.1512]
[1730765622515,0.41537,2408.8,2408.6,0.41539]
[1730765623418,40.8,2408.9,2408.5,3.2078]
[1730765623617,0.4154,2408.7,2408.5,3.62322]
[1730765623818,0.4154,2408.7,2408.5,3.2078]
[1730765624021,0.4154,2408.6,2408.5,3.2078]
[1730765624611,40.8,2408.9,2408.5,3.2078]
[1730765624811,0.41539,2408.7,2408.5,3.62321]
[1730765625024,0.4154,2408.6,2408.5,3.62321]
[1730765625316,40.8,2408.9,2408.5,3.62321]
[1730765625518,0.4154,2408.6,2408.5,3.2078]
[1730765626619,0.4154,2408.7,2408.5,3.2078]
[1730765627121,0.4154,2408.6,2408.5,3.2078]
[1730765628212,41.83841,2408.9,2407.8,1.07604694]
[1730765628213,3.2078,2408.7,2407.8,1.07604694]
[1730765628422,3.2078,2408.0,2407.4,0.209]
[1730765628622,41.21553,2407.9,2407.5,0.41559]
[1730765629023,40.8,2407.9,2407.4,3.2078]
[1730765629214,40.8,2407.9,2407.6,0.41557]
[1730765629415,40.8,2407.9,2407.7,0.41555]
[1730765629619,0.41551,2408.0,2407.8,0.9896]
[1730765629819,3.2078,2408.3,2407.8,0.9896]
[1730765630017,0.41552,2407.9,2407.8,0.9896]
[1730765630215,0.41558,2407.6,2407.4,3.2078]
[1730765630418,0.41558,2407.6,2407.4,4.1974]
[1730765630619,40.8,2407.5,2407.4,4.1974]
[1730765630928,41.21559,2407.5,2407.4,4.1974]
[1730765631626,40.8,2407.5,2407.4,4.1974]
[1730765631819,40.8,2407.5,2407.4,4.61301]
[1730765632018,40.8,2407.5,2407.4,8.76661]
[1730765632216,0.41555,2407.8,2407.5,0.41558]
[1730765632519,0.41553,2407.9,2407.6,0.41557]
[1730765632724,0.41554,2407.8,2407.6,0.41557]
[1730765633221,41.21554,2407.8,2407.6,0.41557]
[1730765633426,0.41554,2407.8,2407.6,0.41557]
[1730765633622,0.41554,2407.9,2407.5,0.41559]
[1730765633818,0.41554,2407.9,2407.7,0.41555]
[1730765634124,41.21554,2407.9,2407.7,0.41555]
[1730765634329,0.41557,2407.7,2407.5,0.41559]
[1730765635433,0.41557,2407.7,2407.6,0.41557]
[1730765635720,40.8,2407.9,2407.6,0.41557]
[1730765635927,0.41557,2407.7,2407.5,0.41558]
[1730765636116,40.8,2407.9,2407.4,4.1974]
[1730765636317,0.41556,2407.8,2407.6,0.41556]
[1730765636925,41.21553,2407.9,2407.7,0.41554]
[1730765637122,41.21553,2407.9,2407.7,0.41555]
[1730765637428,41.21553,2407.9,2407.4,4.613]
[1730765637429,40.8,2407.9,2407.4,4.613]
[1730765637616,44.0078,2407.9,2407.2,0.9492]
[1730765637821,44.0078,2407.9,2407.2,1.36483]
[1730765637822,0.41563,2407.4,2407.2,1.36483]
[1730765638022,0.41563,2407.4,2407.2,0.9492]
[1730765638223,0.41563,2407.4,2407.2,1.36483]
[1730765638627,0.41559,2407.5,2407.3,0.41562]
[1730765639524,0.41558,2407.6,2407.4,0.4156]
[1730765640220,0.41559,2407.5,2407.4,0.4156]
[1730765640425,0.41559,2407.5,2407.3,0.41562]
[1730765641024,0.41559,2407.5,2407.4,0.41561]
[1730765641223,0.41557,2407.7,2407.5,0.41558]
[1730765641430,0.41557,2407.7,2407.6,0.949]
[1730765642221,40.8,2408.0,2407.6,4.1568]
[1730765642423,0.41551,2408.0,2407.9,0.41552]
[1730765642621,3.2078,2408.2,2408.0,0.41551]
[1730765642622,0.4155,2408.1,2408.0,0.41551]
[1730765643022,0.4155,2408.1,2407.9,0.41551]
[1730765643224,44.42328,2408.2,2408.1,0.41549]
[1730765643433,1.94613,2408.6,2407.9,3.2078]
[1730765643630,0.41548,2408.2,2408.1,0.41548]
[1730765644025,40.8,2408.5,2407.9,3.2078]
[1730765644223,4.24642,2408.4,2407.8,0.9411]
[1730765644631,0.41551,2408.0,2407.9,0.41551]
[1730765645224,4.24642,2408.4,2408.0,0.4155]
[1730765645225,0.41549,2408.1,2408.0,0.4155]
[1730765645531,3.2078,2408.4,2407.8,0.9411]
[1730765645532,3.2078,2408.4,2407.8,2.01714694]
[1730765645735,0.41549,2408.2,2408.0,0.41549]
[1730765645935,0.41549,2408.1,2408.0,3.62329]
[1730765646141,0.41549,2408.1,2408.0,3.2078]
[1730765646427,0.41549,2408.1,2408.0,3.62331]
[1730765647034,3.2078,2408.4,2408.0,3.2078]
[1730765647238,0.41549,2408.2,2408.0,3.62329]
[1730765647424,0.41549,2408.2,2408.1,0.41549]
[1730765647629,3.2078,2408.4,2408.0,3.6233]
[1730765647829,0.41548,2408.2,2408.0,3.6233]
[1730765648335,0.41549,2408.1,2408.0,3.6233]
[1730765648729,0.41548,2408.2,2408.0,3.6233]
[1730765648931,3.2078,2408.4,2408.1,0.41548]
[1730765648932,0.41547,2408.3,2408.1,0.41548]
[1730765649233,0.41547,2408.2,2408.1,0.41548]
[1730765649735,0.41547,2408.2,2408.1,0.59627287]
[1730765650036,0.41549,2408.1,2408.0,3.62329]
[1730765650237,0.41548,2408.2,2408.1,0.41549]
[1730765650440,0.41548,2408.2,2408.1,1.01199575]
[1730765650628,3.62324,2408.4,2408.3,0.41545]
[1730765650830,40.8,2408.5,2408.2,0.953]
[1730765651034,41.21542,2408.5,2408.4,0.41544]
[1730765651233,41.21542,2408.5,2408.4,0.59654193]
[1730765651433,41.21542,2408.5,2408.4,1.01198193]
[1730765651634,40.8,2408.5,2408.4,1.01198193]
[1730765652237,41.21542,2408.5,2408.4,0.59654193]
[1730765652438,40.8,2408.5,2408.4,0.41544]
[1730765652741,41.21543,2408.5,2408.4,0.41544]
[1730765652932,40.8,2408.5,2408.3,4.1437]
[1730765653236,40.8,2408.5,2408.2,2.02904694]
[1730765653429,40.8,2408.5,2408.3,0.59701709]
[1730765653625,40.8,2408.5,2408.2,2.02904694]
[1730765653834,0.41545,2408.3,2408.2,1.36846]
[1730765654031,0.41545,2408.3,2408.2,0.5970395]
[1730765654230,0.41549,2408.1,2408.0,3.2078]
[1730765654431,0.41549,2408.1,2408.0,3.80527374]
[1730765654728,0.41549,2408.1,2408.0,5.09224198]
[1730765654934,0.41549,2408.1,2408.0,3.80523692]
[1730765655134,0.41549,2408.1,2408.0,4.01631923]
[1730765655332,0.41549,2408.1,2408.0,4.01630955]
[1730765655535,0.41549,2408.1,2408.0,4.28384694]
[1730765655839,0.41549,2408.1,2408.0,4.01994676]
[1730765656230,0.41549,2408.1,2408.0,3.2078]
[1730765656431,0.41549,2408.1,2408.0,4.02038468]
[1730765656628,0.41549,2408.1,2408.0,3.80925951]
[1730765657043,0.41549,2408.1,2408.0,4.02044672]
[1730765657240,7.77609,2408.1,2408.0,0.81264672]
[1730765657436,7.77609,2408.1,2408.0,0.60145951]
[1730765658036,0.41552,2407.9,2407.8,1.07604694]
[1730765658236,0.41552,2407.9,2407.8,1.88965752]
[1730765659239,0.41552,2407.9,2407.8,1.28748766]
[1730765659439,0.8969,2408.0,2407.8,1.88972768]
[1730765659640,1.31241,2408.0,2407.9,0.81370181]
[1730765660143,1.0386,2408.4,2407.9,1.22922181]
[1730765660144,3.2078,2408.4,2407.9,1.22922181]
[1730765660444,3.62329,2408.1,2408.0,0.81370181]
[1730765660746,0.41552,2407.9,2407.8,1.07604694]
[1730765661046,0.41552,2407.9,2407.8,1.67836406]
[1730765661241,4.56832,2407.9,2407.8,1.07604694]
[1730765662844,0.41556,2407.7,2407.6,1.61391135]
[1730765663051,0.41556,2407.7,2407.6,2.42770132]
[1730765663838,0.41556,2407.7,2407.6,0.60229527]
[1730765664237,0.4156,2407.5,2407.3,2.8352]
[1730765664437,0.41559,2407.6,2407.4,0.81374984]
[1730765664646,0.41559,2407.6,2407.5,0.81374984]
[1730765664947,41.21559,2407.6,2407.5,0.81374984]
[1730765666243,41.21559,2407.6,2407.5,0.60227059]
[1730765666441,41.21559,2407.6,2407.5,0.81378229]
[1730765667136,40.8,2407.6,2407.3,3.25082]
[1730765667335,41.21559,2407.6,2407.4,0.81393264]
[1730765667541,41.21559,2407.6,2407.5,0.81393264]
[1730765668357,41.21559,2407.6,2407.5,0.21153661]
[1730765668843,40.8,2407.6,2407.2,3.2078]
[1730765669150,0.41562,2407.4,2407.3,0.81412673]
[1730765669945,0.41562,2407.4,2407.3,0.60263866]
[1730765670139,0.41562,2407.4,2407.3,0.81424801]
[1730765670643,0.41562,2407.4,2407.3,0.21160935]
[1730765670846,40.8,2407.6,2407.3,0.21160935]
[1730765671043,0.4156,2407.5,2407.4,0.21165532]
[1730765671748,0.4156,2407.5,2407.4,1.22845532]
[1730765672347,0.4156,2407.5,2407.4,1.83124869]
[1730765672953,0.4156,2407.5,2407.4,1.22845532]
[1730765673154,0.4156,2407.5,2407.4,1.83132033]
[1730765673451,0.4156,2407.5,2407.4,0.81452295]
[1730765673653,4.1536,2407.5,2407.1,1.0749767]
[1730765673850,40.8,2407.6,2407.1,1.0749767]
[1730765673851,3.62344,2407.2,2407.1,1.0749767]
[1730765674058,3.62344,2407.2,2407.1,1.88980934]
[1730765674355,7.77784,2407.2,2407.1,1.28668234]
[1730765674557,7.77784,2407.2,2407.1,1.0749767]
[1730765676059,3.62344,2407.2,2407.1,1.0749767]
[1730765676250,3.2078,2407.2,2406.8,1.0168]
[1730765676449,0.4157,2406.9,2406.8,1.0168]
[1730765676750,0.4157,2406.9,2406.8,1.83117688]
[1730765677055,3.2078,2407.2,2406.8,1.0168]
[1730765677258,0.41568,2407.0,2406.9,0.81423498]
[1730765678955,4.57008,2407.0,2406.9,0.81423498]
[1730765679152,4.57008,2407.0,2406.9,0.21163607]
[1730765680357,4.1544,2407.0,2406.8,1.0168]
[1730765680559,0.41568,2407.0,2406.9,0.2114387]
[1730765680755,4.57008,2407.0,2406.9,0.2114387]
[1730765681150,0.4157,2406.9,2406.8,1.0168]
[1730765681359,0.4157,2406.9,2406.8,1.83029188]
[1730765682857,0.4157,2406.9,2406.8,1.22820176]
[1730765683357,3.2078,2407.2,2406.8,1.22820176]
[1730765683557,0.4157,2406.9,2406.8,1.0168]
[1730765683761,3.2078,2407.2,2406.8,1.0168]
[1730765683957,3.2078,2407.2,2406.9,1.0232]
[1730765684162,0.41568,2407.0,2406.9,1.0232]
[1730765686253,4.57008,2407.0,2406.8,1.0168]
[1730765686455,0.41568,2407.0,2406.8,1.0168]
[1730765687264,0.41568,2407.0,2406.8,1.43251]
[1730765687765,3.2078,2407.3,2406.8,1.4325]
[1730765687966,1.70666,2407.2,2406.9,0.41568]
[1730765688166,1.70666,2407.2,2407.0,1.0083]
[1730765688167,0.41567,2407.1,2407.0,1.0083]
[1730765688456,0.41567,2407.1,2407.0,1.9618]
[1730765693266,4.1544,2407.1,2406.8,1.0168]
[1730765693461,0.4157,2406.9,2406.8,1.0168]
[1730765695563,0.41571,2406.8,2406.7,3.2078]
[1730765696267,4.57091,2406.8,2406.7,3.2078]
[1730765697364,4.1552,2406.8,2406.5,1.0237]
[1730765697563,0.4158,2406.3,2406.1,1.40083]
[1730765697760,0.4158,2406.3,2406.2,1.21958078]
[1730765697974,0.4158,2406.3,2406.2,1.0081]
[1730765698469,0.41585,2406.0,2405.9,6.7e-06]
[1730765698668,0.41597,2405.3,2405.2,0.9892]
[1730765699065,40.8,2405.3,2405.2,0.9892]
[1730765699267,40.8,2405.3,2404.7,4.82026506]
[1730765699463,0.41601,2405.1,2404.7,3.62387]
[1730765699676,3.2078,2405.2,2404.7,3.62387]
[1730765699677,3.2078,2405.2,2404.7,3.2078]
[1730765699877,3.2078,2405.2,2404.1,0.41617]
[1730765699878,0.4161,2404.6,2404.1,0.41617]
[1730765700171,0.4161,2404.6,2404.2,0.80993477]
[1730765700172,0.41615,2404.3,2404.2,0.80993477]
[1730765700364,0.41616,2404.2,2404.1,1.9916]
[1730765700566,0.41616,2404.3,2404.1,0.9892]
[1730765700772,40.8,2404.2,2404.1,0.9892]
[1730765701075,44.0078,2404.2,2403.5,5.82266506]
[1730765701265,3.2078,2403.9,2403.6,0.81087393]
[1730765701470,3.2078,2403.9,2403.5,1.9916]
[1730765701471,0.41626,2403.7,2403.5,1.9916]
[1730765701675,3.2078,2403.9,2403.5,0.9892]
[1730765701873,0.41626,2403.7,2403.5,0.9892]
[1730765702270,4.8918,2403.9,2403.5,0.9892]
[1730765702569,5.30803,2403.9,2403.5,0.9892]
[1730765703167,0.41623,2403.8,2403.5,0.9892]
[1730765703668,4.8918,2403.9,2403.5,0.9892]
[1730765703869,4.8918,2403.9,2403.6,0.41627]
[1730765704073,4.8918,2403.9,2403.5,0.9892]
[1730765704266,2.10022,2403.9,2403.5,1.40547]
[1730765704466,1.684,2403.9,2403.6,0.41626]
[1730765704778,1.684,2403.9,2403.6,0.41625]
[1730765705071,1.684,2403.9,2403.5,0.9892]
[1730765705580,0.41624,2403.8,2403.5,1.40548]
[1730765706073,2.10022,2403.9,2403.6,0.41626]
[1730765706464,0.41623,2403.8,2403.5,0.9892]
[1730765706666,1.684,2403.9,2403.5,0.9892]
[1730765706887,0.41624,2403.8,2403.5,0.9892]
[1730765707266,0.41625,2403.7,2403.5,0.9892]
[1730765707569,0.41627,2403.6,2403.5,0.9892]
[1730765707772,0.41632,2403.3,2403.1,3.2078]
[1730765707970,0.41633,2403.3,2403.1,3.2078]
[1730765710278,5.30803,2403.9,2403.5,0.41627]
[1730765710870,5.30803,2403.9,2403.6,0.41627]
[1730765711075,5.30803,2403.9,2403.5,0.41628]
[1730765711272,0.41624,2403.8,2403.4,3.62409]
[1730765711479,0.41624,2403.8,2403.5,0.41628]
[1730765711678,5.30802,2403.9,2403.5,0.41628]
[1730765711886,0.41623,2403.8,2403.5,0.41628]
[1730765712278,0.41628,2403.5,2403.4,3.2078]
[1730765712575,0.41635,2403.1,2403.0,1.0267]
[1730765712981,4.4438,2403.5,2403.0,1.0267]
[1730765713287,41.21635,2403.1,2403.0,1.0267]
[1730765713675,40.8,2403.1,2403.0,1.0267]
[1730765714578,40.8,2403.1,2403.0,1.44307]
[1730765714973,40.8,2403.1,2403.0,4.65087]
[1730765715375,0.9579,2403.8,2403.0,8.3961]
[1730765715574,0.9579,2403.8,2403.5,0.41628]
[1730765715575,0.41624,2403.8,2403.5,0.41628]
[1730765715782,0.41624,2403.8,2403.4,3.2078]
[1730765715783,40.8,2403.7,2403.6,0.41626]
[1730765715982,0.41623,2403.9,2403.6,0.41626]
[1730765716275,1.236,2404.0,2403.5,1.025]
[1730765716472,40.8,2403.9,2403.6,0.41626]
[1730765716669,40.8,2403.9,2403.6,1.44226]
[1730765716876,41.21622,2403.9,2403.6,1.026]
[1730765717583,40.8,2403.9,2403.6,1.44227]
[1730765717781,40.8,2403.9,2403.7,0.41625]
[1730765717979,40.8,2403.9,2403.8,3.2078]
[1730765718182,40.8,2403.9,2403.8,3.62403]
[1730765718388,40.8,2403.9,2403.8,3.2078]
[1730765720878,40.8,2403.9,2403.8,3.62403]
[1730765721083,40.8,2403.9,2403.8,3.2078]
[1730765721782,41.21621,2403.9,2403.8,3.2078]
[1730765721978,40.8,2403.9,2403.8,3.2078]
[1730765722378,40.8,2403.9,2403.8,3.62403]
[1730765722884,40.8,2403.9,2403.8,7.78403]
[1730765723081,0.4161,2404.6,2404.4,0.41612]
[1730765723386,0.4161,2404.6,2404.3,0.41613]
[1730765723578,40.8,2404.5,2404.4,0.41612]
[1730765723983,0.3070169,2405.4,2404.3,1.984]
[1730765724175,4.4768,2405.5,2405.0,0.41602]
[1730765724391,1.7672,2405.8,2405.2,0.41598]
[1730765724392,1.269,2405.7,2405.2,0.41598]
[1730765724677,40.8,2405.6,2405.2,3.2078]
[1730765724878,0.41597,2405.4,2405.2,3.2078]
[1730765725074,40.8,2405.6,2405.2,3.2078]
[1730765725477,40.8,2405.6,2405.4,0.41595]
[1730765725684,40.8,2405.6,2405.5,3.2078]
[1730765726678,40.8,2405.6,2405.5,3.62374]
[1730765726878,40.8,2405.6,2405.5,3.2078]
[1730765727178,0.41587,2405.9,2405.6,0.41592]
[1730765727378,0.41586,2406.0,2405.6,0.41592]
[1730765727583,4.4768,2406.2,2405.5,3.2078]
[1730765727883,41.21584,2406.1,2405.7,0.41589]
[1730765728074,40.8,2406.1,2405.5,3.2078]
[1730765728279,0.41592,2405.6,2405.5,3.2078]
[1730765728481,0.41596,2405.4,2405.1,0.9326]
[1730765728681,0.41593,2405.6,2405.3,3.2078]
[1730765728879,40.8,2405.5,2405.3,3.2078]
[1730765729083,41.21594,2405.5,2405.3,3.2078]
[1730765729286,40.8,2405.5,2405.3,3.2078]
[1730765729778,40.8,2405.5,2405.3,3.62376]
[1730765729980,41.21594,2405.5,2405.3,3.2078]
[1730765730179,0.41595,2405.4,2405.3,3.2078]
[1730765730389,40.8,2405.5,2405.0,1.0037]
[1730765730588,0.41598,2405.3,2405.0,1.0037]
[1730765730783,0.41597,2405.3,2405.0,1.41972]
[1730765730979,40.8,2405.5,2405.0,1.0037]
[1730765731182,0.41607,2404.8,2404.4,0.41612]
[1730765731690,0.41611,2404.6,2404.3,5.1311]
[1730765732189,0.41607,2404.8,2404.4,0.41612]
[1730765732383,4.1829,2405.0,2404.4,0.41612]
[1730765732991,0.41607,2404.8,2404.4,0.41612]
[1730765733490,4.1829,2405.0,2404.6,3.62389]
[1730765733491,3.62383,2405.0,2404.6,3.62389]
[1730765733985,3.2078,2405.0,2404.7,0.41607]
[1730765734191,3.62383,2405.0,2404.6,3.62388]
[1730765734387,3.2078,2405.0,2404.6,3.62388]
[1730765734580,0.41605,2404.9,2404.6,3.2078]
[1730765735991,3.2078,2405.0,2404.6,3.2078]